[Event "Romanian Team Blitz Open 2022"]
[Site "Sebes"]
[Date "2022.12.04"]
[Round "8.15"]
[White "Butolo, Alexandru-Mircea"]
[Black "Nastore, Pavel-Alexandru"]
[Result "0-1"]
[ECO "A45"]
[WhiteElo "2043"]
[BlackElo "2218"]
[Annotator "TA"]
[PlyCount "60"]
[EventDate "2022.12.04"]
[EventType "blitz"]
[EventCountry "ROU"]
[SourceTitle "playchess.com"]
[Source "ChessBase"]
[SourceQuality "1"]
[TimeControl "180+2"]

{[%evp 9,60,-125,-39,-45,-24,-17,-31,-36,-25,-44,-26,-50,-18,-62,-52,-61,-76,-80,-69,-75,-71,-59,-64,-90,-90,-97,-91,-112,-73,-85,-65,-104,-125,-146,-150,-336,-289,-279,-291,-429,-421,-416,-404,-409,-370,-369,-370,-687,-622,-718,-683,-820,-791]} 1. d4 {[%emt 0:03:04]} Nf6 {[%emt 0:03:04]} 2. Bf4 c5 3. e3 {[%emt 0:00:04]} Qb6 {[%emt 0:00:04]} 4. Na3 {[%emt 0:00:02]} d6 {[%emt 0:00:02]} 5. dxc5 {[%emt 0:00:02]} Qxc5 {[%emt 0:00:02]} (5... Qxb2 $17 6. Nb5 Qb4+ 7. Qd2 Qxc5) 6. Nf3 $15 {[%emt 0:00:02] A45: Trompowsky Attack.} g6 {[%emt 0:00:02]} 7. c3 {[%emt 0:00:02]} Bg7 {[%emt 0:00:02]} 8. Be2 {[%emt 0:00:02] Black is slightly better.} O-O {[%emt 0:00:02]} 9. h3 {[%emt 0:00:02] [#]} a6 $146 {[%emt 0:00:02]} ({Predecessor:} 9... Nd5 10. Qd3 Bf5 11. Qd2 Nxf4 12. exf4 e5 13. Nc4 exf4 14. Qxf4 d5 15. Ncd2 Re8 {½-½ (47) Alameda Arellano,C (1564)-Marin Aso,J (1915) Madrid 2019}) 10. O-O {[%emt 0:00:02]} Qc7 {[%emt 0:00:02]} (10... Nbd7 $5) 11. Qc2 {[%emt 0:00:02]} Bf5 {[%emt 0:00:02]} 12. Qb3 {[%emt 0:00:02]} Nbd7 {[%emt 0:00:02]} 13. Nd4 {[%emt 0:00:02]} Nc5 {[%emt 0:00:02]} 14. Qd1 {[%emt 0:00:02]} Bd7 {[%emt 0:00:02]} 15. Bh2 {[%emt 0:00:02]} Rac8 {[%emt 0:00:02]} 16. f3 {[%emt 0:00:02]} e5 $36 {[%emt 0:00:02][%mdl 2048] Keeping White busy.} 17. Nb3 {[%emt 0:00:02]} Be6 {[%emt 0:00:02]} 18. Kh1 {[%emt 0:00:02]} Rfd8 {[%emt 0:00:02]} 19. Nxc5 {[%emt 0:00:02]} Qxc5 {[%emt 0:00:02]} 20. Bg1 {[%emt 0:00:02]} Nh5 {[%emt 0:00:02] Threatens to win with ...Ng3+. Black is much more active.} 21. Kh2 {[%emt 0:00:02] Inhibits Ng3.} Qc7 {[%emt 0:00:02]} 22. e4 $2 {[%emt 0:00:02] This move loses the game for White.} (22. g4 $17 Nf6 23. Bf2) 22... d5 {[%emt 0:00:02]} 23. Qe1 {[%emt 0:00:02]} Bh6 {[%emt 0:00:02] [#] Strongly threatening ...Bf4+.} 24. g3 {[%emt 0:00:02] Prevents Bf4.} (24. Kh1 $142) 24... dxe4 $19 {[%emt 0:00:02]} 25. fxe4 Rd2 {[%emt 0:00:02]} 26. Rf2 {[%emt 0:00:04]} Rxb2 {[%emt 0:00:02]} 27. Bxh5 Rxf2+ {[%emt 0:00:02]} (27... Qxc3 $2 {too greedy.} 28. Qxc3 Rxf2+ 29. Bxf2 $19) 28. Qxf2 $2 {[#]} (28. Bxf2 gxh5 29. Nc2) 28... gxh5 {[%emt 0:00:02] Black is clearly winning.} 29. Qf6 {[%emt 0:00:06]} Bg7 {[%emt 0:00:02] A strong pair of Bishops.} 30. Qg5 {[%emt 0:00:02]} Qxc3 {[%emt 0:00:02] Weighted Error Value: White=0.50/Black=0.17 (very precise)} 0-1

[Event "Romanian Team Blitz Open 2022"]
[Site "Sebes"]
[Date "2022.12.04"]
[Round "8.16"]
[White "Ciorgovean, Iustin"]
[Black "Prelipcean, Eric-Matei"]
[Result "1/2-1/2"]
[ECO "B38"]
[WhiteElo "2319"]
[BlackElo "1909"]
[Annotator "TA"]
[PlyCount "92"]
[EventDate "2022.12.04"]
[EventType "blitz"]
[EventCountry "ROU"]
[SourceTitle "playchess.com"]
[Source "ChessBase"]
[SourceQuality "1"]
[TimeControl "180+2"]

{[%evp 23,92,33,35,27,25,22,22,22,22,13,18,0,3,0,0,0,0,-34,-25,-37,-34,-31,-16,-32,0,0,0,0,54,20,29,12,10,0,91,80,89,89,100,91,127,75,74,81,78,2,3,2,2,-18,-15,-37,-27,-27,-27,-27,-27,-27,-27,-27,-27,-27,-2,-6,-6,-15,0,0,0,-66,0]} 1. c4 {[%emt 0:00:01]} c5 {[%emt 0:00:01]} 2. Nf3 {[%emt 0:00:01]} Nf6 {[%emt 0:00:00]} 3. Nc3 {[%emt 0:00:01]} g6 {[%emt 0:00:02]} 4. e4 {[%emt 0:00:03]} Nc6 {[%emt 0:00:03]} 5. d4 {[%emt 0:00:01]} cxd4 {[%emt 0:00:02]} 6. Nxd4 {[%emt 0:00:01]} d6 {[%emt 0:00:01]} 7. f3 {[%emt 0:00:02]} Bg7 {[%emt 0:00:01]} 8. Be3 {[%emt 0:00:02]} O-O {[%emt 0:00:02]} 9. Be2 {[%emt 0:00:03]} Nxd4 {[%emt 0:00:11]} 10. Bxd4 {[%emt 0:00:01]} Nd7 {[%emt 0:00:04]} 11. O-O {[%emt 0:00:11]} Bxd4+ {[%emt 0:00:02]} 12. Qxd4 {[%emt 0:00:01]} Qb6 {[%emt 0:00:02]} 13. Qxb6 {[%emt 0:00:11] B38: Sicilian: Maroczy Bind with 5...Bg7 and 7...0-0.} Nxb6 {[%emt 0:00:01]} 14. Rac1 {[%emt 0:00:14]} Be6 {[%emt 0:00:02]} 15. b3 {[%emt 0:00:05][%cal Bb2b3,Bb3b4,Bb4c5][%mdl 32] The position is equal.} a5 {[%emt 0:00:09]} 16. Nd5 {[%emt 0:00:24]} Bxd5 17. exd5 {[%emt 0:00:01]} (17. cxd5 $5 {[%cal Rc1c7]} Rac8 18. Kf2 $14) 17... Rfc8 {[%emt 0:00:07] [#]} 18. Kf2 $146 {[%emt 0:00:06]} ({Predecessor:} 18. Rfd1 Rc7 19. Kf2 Rac8 20. h4 Nd7 21. Rb1 Kg7 22. Rh1 {½-½ (22) Hassemeier,M (2095)-Koll,L (2060) Wiesbaden 2022}) 18... Rc7 {[%emt 0:00:08]} 19. Ke3 {[%emt 0:00:05]} a4 {[%emt 0:00:09]} 20. b4 {[%emt 0:00:10]} Rac8 {[%emt 0:00:01][%cal Rb6c4]} 21. Kd4 {[%emt 0:00:01]} e5+ {[%emt 0:00:01]} 22. dxe6 {[%emt 0:00:01]} fxe6 {[%emt 0:00:01]} 23. c5 {[%emt 0:00:25]} dxc5+ {[%emt 0:00:13]} (23... Kf7 {keeps more tension.} 24. Rc2 Rd8 25. Ke4 dxc5 26. bxc5 Rd5) 24. Rxc5 {[%emt 0:00:09]} Rxc5 {[%emt 0:00:23]} 25. bxc5 $15 {[%emt 0:00:01][%mdl 4096] Endgame KRB-KRN} Rd8+ {[%emt 0:00:02]} (25... e5+ $1 $11 26. Kxe5 Rxc5+ 27. Kd4 Rd5+ 28. Ke3 Rd6) 26. Ke4 {[%emt 0:00:17]} (26. Ke5 $5 {[%cal Rc5b6]} Rd5+ 27. Kxe6 Rxc5 28. Rd1 $14) 26... Nd5 {[%emt 0:00:01]} 27. Bc4 {[%emt 0:00:05] next Ke5 is good for White.} Kf7 {[%emt 0:00:07]} 28. Ke5 {[%emt 0:00:08]} Rc8 {[%emt 0:00:21] [#]} (28... Nb4 $1 $11 29. Re1 (29. Bxe6+ Ke7 $17) 29... Nd3+ 30. Bxd3 Rxd3) 29. Rb1 $1 $16 {[%emt 0:00:14]} Rxc5 {[%emt 0:00:05]} 30. Rxb7+ {[%emt 0:00:01]} Ne7+ {[%emt 0:00:14]} 31. Kd4 {[%emt 0:00:21]} Rc6 {[%emt 0:00:06]} 32. a3 {[%emt 0:00:03] White is much more active.} (32. Ra7 $142) 32... Kf6 {[%emt 0:00:01] Strongly threatening ...Nf5+.} 33. Ra7 {[%emt 0:00:07]} Nf5+ {[%emt 0:00:02] [#]} 34. Kd3 {[%emt 0:00:01]} (34. Kc3 $1 $16) 34... Nh4 $11 {[%emt 0:00:06]} 35. Rxa4 {[%emt 0:00:16] Threatens to win with Bb5.} Nxg2 {[%emt 0:00:01]} 36. Ra7 {[%emt 0:00:05]} Ne1+ {[%emt 0:00:03]} 37. Ke2 {[%emt 0:00:04]} Nxf3 {[%emt 0:00:01]} 38. Kxf3 {[%emt 0:00:03] Be2 is the strong threat.} Rxc4 {[%emt 0:00:01]} 39. Rxh7 $15 {[%emt 0:00:02] KR-KR} Rc3+ {[%emt 0:00:00]} 40. Kg4 {[%emt 0:00:02]} Rxa3 {[%emt 0:01:25]} 41. h4 {[%emt 0:00:01]} Ra4+ {[%emt 0:00:00]} 42. Kg3 {[%emt 0:00:01]} e5 {[%emt 0:00:00]} 43. Rh8 {[%emt 0:00:01]} Kf5 {[%emt 0:00:00]} 44. h5 {[%emt 0:00:03]} gxh5 {[%emt 0:00:00]} 45. Rxh5+ {[%emt 0:00:01]} Ke6 {[%emt 0:00:00]} 46. Kf3 {[%emt 0:00:02]} (46. Rh1 $11) 46... e4+ {Weighted Error Value: White=0.15 (very precise) /Black=0.09 (flawless)} ({Black should try} 46... Kd5 $15) 1/2-1/2

[Event "Romanian Team Blitz Open 2022"]
[Site "Sebes"]
[Date "2022.12.04"]
[Round "8.17"]
[White "Stanca, Adrian"]
[Black "Nastase, Robert-Paul"]
[Result "1-0"]
[ECO "A05"]
[WhiteElo "2182"]
[BlackElo "2229"]
[Annotator "TA"]
[PlyCount "61"]
[EventDate "2022.12.04"]
[EventType "blitz"]
[EventCountry "ROU"]
[SourceTitle "playchess.com"]
[Source "ChessBase"]
[SourceQuality "1"]
[TimeControl "180+2"]

{[%evp 9,61,-4,12,-2,10,6,-6,8,13,0,0,0,0,-16,18,-14,141,0,200,202,195,195,196,206,204,201,391,396,363,224,208,222,211,210,562,538,563,564,631,385,382,371,383,368,562,557,563,562,556,556,545,539,494,489]} 1. Nf3 {[%emt 0:00:02]} Nf6 {[%emt 0:00:01]} 2. g3 {[%emt 0:03:04]} g6 {[%emt 0:00:01]} 3. Bg2 {[%emt 0:00:00]} Bg7 {[%emt 0:00:00]} 4. O-O {[%emt 0:00:00]} O-O {[%emt 0:00:01]} 5. d3 {[%emt 0:00:00]} b6 {[%emt 0:00:03]} 6. Ne5 {[%emt 0:00:00] A05: Réti Opening: 1 Nf3 Nf6.} c6 {[%emt 0:00:04] [#]} 7. d4 $146 {[%emt 0:00:00]} ({Predecessor:} 7. c4 Bb7 8. Nc3 d6 9. Nf3 Nbd7 10. Rb1 c5 11. a3 e5 12. b4 Re8 13. Bb2 {1-0 (63) Navalgund,N (2289)-Giroyan,G (2403) Chess.com INT 2021}) 7... Qc7 {[%emt 0:00:18]} 8. c4 {[%emt 0:00:00][%cal Bc2c4,Bc4d5][%mdl 32] The position is equal.} d6 {[%emt 0:00:03]} 9. Nd3 {[%emt 0:00:00]} e5 {[%emt 0:00:07]} 10. d5 {[%emt 0:00:00]} cxd5 {[%emt 0:00:13]} 11. cxd5 {[%emt 0:00:00]} Nfd7 {[%emt 0:00:36]} (11... e4 $5 {[%cal Re4d3]} 12. Nb4 a5 $11) 12. Nc3 {[%emt 0:00:00][%cal Bb1c3,Bc3b5,Bb5d6][%mdl 32]} f5 $2 {[%emt 0:00:04]} (12... Nc5 $11) 13. Bg5 {[%emt 0:00:00] White stays focused until the end.} (13. Nb5 $16 Qd8 14. Nxd6) 13... e4 $2 {[%emt 0:00:12] [#]} (13... Nc5 $1 $11 {and Black stays safe.}) 14. Nb5 $1 $18 {[%emt 0:00:00]} Qc4 {[%emt 0:00:04]} 15. Nxd6 {[%emt 0:00:00]} Qxd5 {[%emt 0:00:02]} 16. Nf4 {[%emt 0:00:00][%cal Bd3f4,Bf4e6,Be6c7][%mdl 32]} Qxd1 {[%emt 0:00:07]} 17. Raxd1 {[%emt 0:00:00] Black must now prevent Ne6.} Bxb2 $2 {[%emt 0:00:39]} (17... Ne5 18. Be7 Nbc6) 18. Ne6 {[%emt 0:00:00][%mdl 64] [#] Trapped Piece} Ba6 {[%emt 0:00:08] Inhibits f3.} 19. Nc7 {[%emt 0:00:00][%cal Of1e1] aiming for Rfe1!} Bxe2 {[%emt 0:00:13][%cal Ob8a6]} 20. Nxa8 {[%emt 0:00:00][%cal Og5e7] Threatens to win with Be7!} Na6 {[%emt 0:00:14]} 21. Nxe4 {[%emt 0:00:00]} fxe4 $2 {[%emt 0:00:23]} (21... Bxd1 {is a better chance.} 22. Rxd1 fxe4) 22. Rxd7 {[%emt 0:00:00]} Bxf1 {[%emt 0:00:01]} 23. Bxf1 {[%emt 0:00:00]} Nc5 {[%emt 0:00:02]} 24. Rd8 {[%emt 0:00:01]} Rxd8 {[%emt 0:00:06]} 25. Bxd8 {[%emt 0:00:02]} Kf7 {[%emt 0:00:01]} 26. Nc7 {[%emt 0:00:03]} a5 {[%emt 0:00:05]} (26... Nd3 $142 27. Bh3 Bd4) 27. Bc4+ {[%emt 0:00:01] White is clearly winning.} Kf8 {[%emt 0:00:02]} 28. Ne6+ {[%emt 0:00:03]} Nxe6 {[%emt 0:00:02]} 29. Bxe6 {[%emt 0:00:01]} Bd4 {[%emt 0:00:01]} 30. Kf1 {[%emt 0:00:04]} Ke8 {[%emt 0:00:02]} 31. Bg5 {[%emt 0:00:02] Weighted Error Value: White=0.34/Black=0.63} 1-0

[Event "Romanian Team Blitz Open 2022"]
[Site "Sebes"]
[Date "2022.12.04"]
[Round "8.18"]
[White "Daianu, Cristian-Clement"]
[Black "Coicev, Matei-Andrei"]
[Result "0-1"]
[ECO "B45"]
[WhiteElo "2189"]
[BlackElo "2009"]
[Annotator "TA"]
[PlyCount "96"]
[EventDate "2022.12.04"]
[EventType "blitz"]
[EventCountry "ROU"]
[SourceTitle "playchess.com"]
[Source "ChessBase"]
[SourceQuality "1"]
[TimeControl "180+2"]

{[%evp 14,96,36,0,7,14,35,28,28,29,26,0,7,0,0,-39,14,-68,-75,-50,-21,-76,-82,-80,-74,-73,-54,-53,0,-47,-23,-68,-45,-39,-48,-129,-118,-124,-127,-173,-162,-160,-160,-162,-159,-162,-162,-162,-162,-156,-158,-163,-143,-174,-171,-256,-206,-616,-317,-315,-306,-311,-298,-318,-309,-493,-454,-475,-477,-445,-367,-525,-519,-747,-750,-745,-737,-737,-716,-922,-933,-29975,-29976,-29978,-29979]} 1. e4 {[%emt 0:00:02]} c5 {[%emt 0:00:01]} 2. Nf3 {[%emt 0:00:02]} e6 {[%emt 0:00:00]} 3. d4 {[%emt 0:00:01]} cxd4 {[%emt 0:00:02]} 4. Nxd4 {[%emt 0:00:01]} Nf6 {[%emt 0:00:01]} 5. Nc3 {[%emt 0:00:01]} Nc6 {[%emt 0:00:01]} 6. Be2 {[%emt 0:00:14]} Bb4 {[%emt 0:00:13]} 7. O-O {[%emt 0:00:05]} O-O {[%emt 0:00:20]} 8. Qd3 {[%emt 0:00:10]} Bxc3 {[%emt 0:00:12] B45: Sicilian Four Knights.} 9. bxc3 {[%emt 0:00:02]} e5 {[%emt 0:00:14]} (9... d5 {with more complications.} 10. exd5 exd5 11. Bg5 Re8) 10. Nb5 {[%emt 0:01:16]} (10. Nxc6 {simplifies} dxc6 11. Qxd8 Rxd8 12. f3) 10... d5 {[%emt 0:00:06] White has an edge.} 11. exd5 {[%emt 0:00:01]} Qxd5 {[%emt 0:00:05] [#]} 12. Nc7 $146 {[%emt 0:00:37]} (12. Qg3 {is interesting.} Qe4 13. Bd3 Qg4 14. Qxg4 Bxg4 15. f3) ({Predecessor:} 12. Qg3 Qe4 13. Bg5 Qxe2 14. Bxf6 Qg4 15. Bxe5 Nxe5 16. Qxe5 Qf5 17. Rfe1 Qxe5 18. Rxe5 {½-½ (45) Renet,O (2564)-Gaertner,G (2378) Switzerland 2004}) 12... Qxd3 {[%emt 0:00:01]} 13. cxd3 {[%emt 0:00:01]} Rb8 {[%emt 0:00:04]} 14. Rb1 {[%emt 0:00:18]} h6 {[%emt 0:00:18]} (14... Bf5 $15) 15. Bf3 {[%emt 0:00:11]} (15. f4 $11) 15... Bf5 $15 {[%emt 0:00:05]} 16. Rd1 {[%emt 0:00:23]} Rfc8 {[%emt 0:00:29]} (16... Rfd8 $5 {[%cal Rf5d3]} 17. Rb2 Rbc8 18. Rxb7 Bxd3 19. Bxc6 Be4 $17) 17. Nb5 {[%emt 0:00:02]} (17. Nd5 $11 {keeps the balance.}) 17... Rd8 $17 {[%emt 0:00:04]} 18. Be2 {[%emt 0:00:04]} a6 {[%emt 0:00:09]} 19. Na3 {[%emt 0:00:01]} Nd5 {[%emt 0:00:05]} 20. Bd2 {[%emt 0:00:02]} Nf6 {[%emt 0:00:15]} ({Black should try} 20... b5 $15) 21. Be1 {[%emt 0:00:03]} (21. Bc1 $11 {was preferrable.}) 21... b5 {[%emt 0:00:02]} (21... Nd7 $5 {[%cal Rd7c5]}) 22. Rbc1 {[%emt 0:00:00]} Rbc8 {[%emt 0:00:02]} (22... Nd5 $5 {[%cal Rd5f4]} 23. Bf3 Nde7 $17) 23. Nc2 {[%emt 0:00:02]} Nd5 {[%emt 0:00:07][%cal Bf6d5,Bd5f4,Bf4e2][%mdl 32]} 24. Ne3 {[%emt 0:00:02] White is now going downhill.} (24. g3 $15) 24... Nf4 $1 $36 {[%emt 0:00:01][%csl LRd3,LRe2][%mdl 2048] Black has strong initiative.} 25. Bf1 {[%emt 0:00:06]} Bxd3 {[%emt 0:00:01][%cal Bf5d3,Bd3e2,Be2c4][%mdl 32] Black is much more active. The white rooks are badly placed.} 26. g3 {[%emt 0:00:01]} (26. a4 $17) 26... Ne2+ {[%emt 0:00:09]} 27. Bxe2 {[%emt 0:00:02]} Bxe2 {[%emt 0:00:01]} 28. Rxd8+ {[%emt 0:00:02]} Rxd8 {[%emt 0:00:00]} 29. f4 {[%emt 0:00:02]} exf4 {[%emt 0:00:02]} 30. gxf4 {[%emt 0:00:01]} Na5 {[%emt 0:00:13] Prevents a4.} 31. Kf2 {[%emt 0:00:01]} Bc4 {[%emt 0:00:01]} 32. Kf3 {[%emt 0:00:01]} Bd5+ {[%emt 0:00:11]} ({Don't do} 32... Bxa2 33. Ra1 $16) 33. Kg3 {[%emt 0:00:03] [#] aiming for Rd1.} Nc4 {[%emt 0:00:02]} 34. Ng4 {[%emt 0:00:02]} (34. Bf2 {might work better.}) 34... Be6 {[%emt 0:00:04] And now ...Rd3+ would win.} 35. Bf2 $2 {[%emt 0:00:02]} (35. Ne5) 35... Bxg4 {[%emt 0:00:01]} 36. Kxg4 $19 {[%emt 0:00:00][%mdl 4096] Endgame KRB-KRN} Rd2 {[%emt 0:00:02][%csl LRa2,LRf2]} 37. Bd4 {[%emt 0:00:02]} Rxh2 {[%emt 0:00:06]} 38. a3 {[%emt 0:00:03]} h5+ {[%emt 0:00:03][%cal Bh6h5,Bh5h4,Bh4h3,Bh3h2][%mdl 32]} (38... Nxa3 $2 39. Ra1 b4 40. cxb4 $19) 39. Kg5 {[%emt 0:00:01]} (39. Kg3 $142 Ra2 40. Kh4) 39... f6+ {[%emt 0:00:09]} (39... Nxa3 $2 40. Ra1 b4 41. cxb4 $19) 40. Kf5 {[%emt 0:00:02]} Kf7 {[%emt 0:00:01][%cal Rc4d6] [#]} (40... Nxa3 $2 {loses.} 41. Ra1 b4 42. cxb4 $19) 41. Ke4 {[%emt 0:00:02]} Re2+ {[%emt 0:00:04]} (41... Nxa3 $2 {perishes.} 42. Ra1 Nc4 43. Rxa6 $19) 42. Kd5 {[%emt 0:00:02]} (42. Kf3 {was worth a try.} Rh2 43. Ra1) 42... h4 {[%emt 0:00:02]} 43. a4 {[%emt 0:00:00]} h3 {[%emt 0:00:02]} 44. axb5 {[%emt 0:00:02]} axb5 {[%emt 0:00:01]} 45. Kc5 {[%emt 0:00:01]} h2 {[%emt 0:00:02] Hoping for ...Nd2.} 46. Kxb5 {[%emt 0:00:01]} Nd2 {[%emt 0:00:01]} 47. c4 {[%emt 0:00:02]} Nb3 {[%emt 0:00:02]} 48. Rh1 {[%emt 0:00:02]} Nxd4+ {[%emt 0:00:01] Weighted Error Value: White=0.63/Black=0.21 (precise)} 0-1

[Event "Romanian Team Blitz Open 2022"]
[Site "Sebes"]
[Date "2022.12.04"]
[Round "8.19"]
[White "Danila, Tudor-Gabriel"]
[Black "Vrencian, Lehel"]
[Result "0-1"]
[ECO "B22"]
[WhiteElo "1939"]
[BlackElo "2226"]
[Annotator "TA"]
[PlyCount "62"]
[EventDate "2022.12.04"]
[EventType "blitz"]
[EventCountry "ROU"]
[SourceTitle "playchess.com"]
[Source "ChessBase"]
[SourceQuality "1"]
[TimeControl "180+2"]

{[%evp 16,61,-1,0,0,0,0,0,0,0,0,0,0,0,0,0,-10,-19,-28,-25,-10,-24,0,-44,24,0,41,-73,0,-111,-118,-357,-347,-684,-626,-662,-647,-1914,-1912,-1849,-1727,-1551,-1268,-12834,-12834,-29994,-29995,-29999]} 1. e4 {[%emt 0:00:02][%cal Be2e4,Be4e5][%mdl 32]} c5 {[%emt 0:00:03]} 2. c3 {[%emt 0:00:00]} Nf6 {[%emt 0:00:02]} 3. e5 {[%emt 0:00:01]} Nd5 {[%emt 0:00:01]} 4. d4 {[%emt 0:00:01]} cxd4 {[%emt 0:00:01]} 5. Nf3 {[%emt 0:00:01]} d6 {[%emt 0:00:01][%cal Bd7d6,Bd6e5][%mdl 32]} 6. cxd4 {[%emt 0:00:01]} Nc6 {[%emt 0:00:02]} 7. Bc4 {[%emt 0:00:01]} dxe5 {[%emt 0:00:01]} 8. Bxd5 {[%emt 0:00:02]} Qxd5 {[%emt 0:00:02]} 9. Nc3 {[%emt 0:00:01]} Qd6 {[%emt 0:00:01][%cal Re5d4] B22: Sicilian: 2 c3.} 10. d5 {[%emt 0:00:01]} Nd4 {[%emt 0:00:01]} ({Much less strong is} 10... e4 11. Nxe4 Qb4+ 12. Nc3 $16) 11. Nxd4 {[%emt 0:00:04]} exd4 {[%emt 0:00:01] The position is equal.} 12. Qxd4 {[%emt 0:00:01] Hoping for Nb5.} e5 {[%emt 0:00:03]} 13. Qd3 {[%emt 0:00:08]} Bd7 {[%emt 0:00:01]} 14. O-O {[%emt 0:00:03]} Qg6 {[%emt 0:00:02] Against f4 14...Be7 is setting a new trend.} 15. Qe2 {[%emt 0:00:04]} Bd6 {[%emt 0:00:01]} 16. Ne4 {[%emt 0:00:01]} (16. f4 {is interesting.} O-O 17. fxe5 Rfe8 18. Bf4) 16... O-O {[%emt 0:00:13]} 17. Nxd6 {[%emt 0:00:05]} Qxd6 {[%emt 0:00:02]} 18. Rd1 {[%emt 0:00:03]} f5 {[%emt 0:00:10][%cal Bf7f5,Bf5f4][%mdl 32] [#]} 19. b3 $146 {[%emt 0:00:02]} ({Predecessor:} 19. Bd2 f4 20. Rac1 Rae8 21. Qc4 Qg6 22. Kh1 e4 23. Bb4 Rc8 24. Qd4 Bh3 25. g3 Qh5 26. Qxe4 Rce8 27. Qd3 Re3 {0-1 (27) Sveshnikov,V (2398)-Ladva,O (2510) Parnu 2016}) 19... e4 {[%emt 0:00:11]} (19... f4 $15) 20. a4 {[%emt 0:00:07] Strongly threatening Ba3.} Qg6 {[%emt 0:00:14]} 21. Ba3 {[%emt 0:00:01] [#] Against f4} (21. Bf4 $14 {stays ahead.}) 21... Rf7 {[%emt 0:00:05]} (21... f4 $1 $17 {[%cal Rf4f3] aiming for ...f3.} 22. Bxf8 f3) 22. Rac1 {[%emt 0:00:02]} (22. Re1 $11) 22... f4 $17 {[%emt 0:00:04] ...f3 is the strong threat.} 23. g3 $2 {[%emt 0:00:11] White does not recover from this.} (23. Kh1 $17) 23... Bg4 $19 {[%emt 0:00:12]} 24. Qb5 {[%emt 0:00:07]} (24. Qc2 Bxd1 25. Rxd1) 24... Bxd1 25. Rxd1 {[%emt 0:00:01]} e3 {[%emt 0:00:18][%cal Be4e3,Be3f2][%mdl 32]} 26. Qc4 {[%emt 0:00:36]} exf2+ {[%emt 0:02:02]} 27. Kg2 {[%emt 0:00:05]} fxg3 {[%emt 0:00:00]} 28. hxg3 {[%emt 0:00:02]} Qh5 {[%emt 0:00:00]} 29. Qd3 {[%emt 0:00:01] Inhibits Qf3+.} Re8 {[%emt 0:00:00] ( -> ...Re1)} 30. d6 {[%emt 0:00:33]} Re1 {[%emt 0:00:00][%csl Ge1][%cal Rh5h1]} 31. d7 {[%emt 0:00:12]} Qh1# {[%emt 0:00:00] Weighted Error Value: White=1.21/Black=0.10 (very precise)} 0-1